Cogmind - Beta 15 @@@ ROGUE MODE // 2025.09.19 @ 07:28:55 Player: GermanMO Result: Destroyed by X9-4ZE(R) with Subdweller Machine Gun Performance ------------- Evolutions (0) 0 Regions Visited (2) 400 Robots Destroyed (21) 105 Value Destroyed (432) 432 Prototype IDs (0) 0 Alien Tech Used (0) 0 Bonus (0) 0 TOTAL SCORE: 937 Bonus ------- None Cogmind --------- Core Integrity 0/250 Matter 265/300 Energy 100/100 System Corruption 0% Temperature Cool (0) Movement Rolling (110) Location -10/Subcaves Parts ------- > --- POWER (1) -------- (None) > --- PROPULSION (2) --- Subdweller Monowheel Subdweller Monowheel > --- UTILITY (2) ------ Small Storage Unit > --- WEAPON (2) ------- Assault Rifle Subdweller Machine Gun > --- INVENTORY (8) ---- Light Ion Engine Improved Terrain Scanner Flamer Peak State ------------ > --- POWER ------------ Ion Engine > --- PROPULSION ------- Light Treads Light Treads > --- UTILITY ---------- Small Storage Unit Improved Terrain Scanner > --- WEAPON ----------- Medium Laser Assault Rifle > --- INVENTORY -------- (None) [Rating: 9] Favorites ----------- Power Ion Engine Engine Ion Engine Propulsion Light Treads Treads Light Treads Wheel Subdweller Monowheel Utility Small Storage Unit Device Improved Terrain Scanner Storage Small Storage Unit Protection Weapon Shielding Weapon Medium Laser Energy Gun Medium Laser Ballistic Gun Light Assault Rifle Build | -11 -10 -10 ------- Run | Yrd Mat Sub Slots Evolved . | . . . Power . | . . . Propulsion . | . . . Utility . | . . . Weapon . | . . . Parts Attached 13 | 6 3 4 Power 1 | 1 . . Engine 1 | 1 . . Core . | . . . Reactor . | . . . Propulsion 5 | 2 . 3 Treads 2 | 2 . . Leg . | . . . Wheel 3 | . . 3 Hover . | . . . Flight . | . . . Utility 3 | 1 2 . Device 1 | . 1 . Storage 1 | 1 . . Processor . | . . . Hackware . | . . . Protection 1 | . 1 . Artifact . | . . . Weapon 4 | 2 1 1 Energy Gun 1 | 1 . . Energy Cannon . | . . . Ballistic Gun 3 | 1 1 1 Ballistic Cannon . | . . . Launcher . | . . . Special Weapon . | . . . Impact Weapon . | . . . Slashing Weapon . | . . . Piercing Weapon . | . . . Special Melee Weapon . | . . . Unidentified Prototypes . | . . . Parts Lost 7 | . . 7 Power 1 | . . 1 Propulsion 3 | . . 3 Utility 1 | . . 1 Weapon 2 | . . 2 Highest Loss Streak 3 | . . 3 To Critical Strikes 1 | . . 1 Average Backups 2 | . 1 3 Power . | . . 1 Propulsion . | . . . Utility . | . . 1 Weapon . | . . 1 Tool/Special . | . . . Unused Backups 2 | . . 2 Power 1 | . . 1 Propulsion . | . . . Utility . | . . . Weapon 1 | . . 1 Tool/Special . | . . . Average Slot Usage (%) 88 | . 97 85 Engine 12 | . 14 12 Treads 19 | . 28 16 Storage 14 | . 14 14 Protection 11 | . 9 12 Energy Gun 13 | . 14 13 Ballistic Gun 14 | . 14 14 Peak Build Rating 9 | 6 9 9 Average Rating 6 | 5 7 6 On Entrance 4 | . 6 7 Naked Turns . | . . . Heaviest Build 15 | 14 15 14 Greatest Support 40 | 40 40 40 Greatest Overweight (x) 3 | . . 3 Average Overweight (x) . | . . . Largest Inventory Capacity 8 | 8 8 8 Average Capacity 7 | 7 8 8 Most Carried 7 | 3 3 7 Average Carried 2 | . 1 3 Final Capacity 8 | 8 8 8 Final Carried 3 | 1 3 3 Class Distribution -------------------- 100% | Mutant Dominant Class ---------------- Mutant | -10/Materials Mutant | -10/Subcaves Resources | -11 -10 -10 ----------- Run | Yrd Mat Sub Matter Collected 459 | 165 131 163 Remotely . | . . . Salvage Created 641 | 183 218 240 Parts 54 | 13 21 20 Haulers Intercepted . | . . . Recyclers Shooed . | . . . Parts Field Recycled . | . . . Retrieved Matter . | . . . Parts Self-Destructed 8 | . . 8 Prevented . | . . . Kills | -11 -10 -10 ------- Run | Yrd Mat Sub Combat Hostiles Destroyed 15 | . 9 6 Guns 15 | . 9 6 Classes Destroyed 6 | 3 2 1 Worker 2 | 2 . . Tunneler 3 | 3 . . Recycler 1 | 1 . . Swarmer 6 | . 6 . Grunt 5 | . 3 2 Subdweller 4 | . . 4 Best Kill Streak 6 | 4 6 2 Combat Bots Only 6 | . 6 2 Max Kills in Single Turn 1 | 1 1 1 Gunslinging . | . . . Exploded . | . . . Melee . | . . . Uniques/NPCs Destroyed . | . . . Combat | -11 -10 -10 -------- Run | Yrd Mat Sub Hostile Shots Fired 111 | . 64 47 Missed 30 | . 14 16 Hits 81 | . 50 31 Projectile 81 | . 50 31 Critical Strikes 4 | . 1 3 Damage Taken 1037 | . 452 585 Core 258 | . 89 169 Absorbed by Shields . | . . . Redirected to Shielding 53 | . 35 18 Core Remaining (%) 100 | 100 . . Volleys Fired 91 | 15 32 44 Largest 2 | 2 2 2 Hottest 70 | 70 70 70 Shots Fired 173 | 30 64 79 Gun 173 | 30 64 79 Cannon . | . . . Launcher . | . . . Special . | . . . Kinetic 89 | 15 32 42 Thermal 84 | 15 32 37 Explosive . | . . . Electromagnetic . | . . . Robot Hit Streak 10 | 2 5 10 Robot Miss Streak 3 | 3 3 2 Penetration Max . | . . . Secondary Targets 2 | . 2 . Max Gunslinging Chain 1 | . 1 . Shots Hit Robots 94 | 12 36 46 Core Hits 39 | 7 14 18 Critical Kills . | . . . Critical Parts Destroyed . | . . . Critical Strikes 7 | 1 4 2 Burn 6 | 1 4 1 Destroy 1 | . . 1 Melee Attacks . | . . . Impact . | . . . Slashing . | . . . Piercing . | . . . Sneak Attacks . | . . . Combat Hostiles . | . . . Follow-up Attacks . | . . . Damage Inflicted 1084 | 164 400 520 Guns 1084 | 164 400 520 Cannons . | . . . Explosions . | . . . Melee . | . . . Ramming . | . . . Kinetic 535 | 76 190 269 Thermal 549 | 88 210 251 Explosive . | . . . Electromagnetic . | . . . Impact . | . . . Slashing . | . . . Piercing . | . . . Highest Corruption . | . . . Average Corruption . | . . . Corruption Purged . | . . . Corruption Blocked . | . . . Overload Shots . | . . . Overflow Damage . | . . . Projectiles . | . . . Explosions . | . . . Melee . | . . . Knockbacks . | . . . Impact . | . . . Kinetic . | . . . Secondary . | . . . Self-Inflicted Damage . | . . . Shots . | . . . Rammed . | . . . Targets Rammed . | . . . Kicked . | . . . Crushed . | . . . Highest Temperature 162 | 27 162 4 Average Temperature 43 | 12 59 1 Received Heat Transfer 162 | . 24 138 Siege Activations . | . . . Martial Activations . | . . . Shielding Activations . | . . . Robots Disrupted . | . . . Combat Hostiles . | . . . Robots Corrupted . | . . . Combat Hostiles . | . . . Parts Fried . | . . . Impact Corruptions . | . . . Robots Melted . | . . . Combat Hostiles . | . . . Parts Melted 2 | . 1 1 Heat Transferred 2072 | 333 925 814 Parts Sabotaged . | . . . Parts Stolen . | . . . Parts Stripped . | . . . Power Chain Reactions . | . . . Alert | -11 -10 -10 ------- Run | Yrd Mat Sub Maximum Alert Level . | . . . Low Security (%) 100 | 100 100 . Level 1 . | . . . Level 2 . | . . . Level 3 . | . . . Level 4 . | . . . Level 5 . | . . . High Security . | . . . Max Security . | . . . Peak Influence 144 | 10 144 . Initial 3 | . 3 . Average 46 | 2 57 . Influence Increases 320 | 30 240 50 Destroy 0b10 Robot/C 220 | . 180 40 Destroy 0b10 Robot/NC 30 | 30 . . Destroy Leader 40 | . 30 10 Lose Combat Pursuer 30 | . 30 . Influence Decreases 320 | 25 133 162 Entered New Map 57 | . 2 55 Time Decay 253 | 25 131 97 Lost Part 10 | . . 10 Squads Dispatched 1 | . 1 . Investigation . | . . . Extermination . | . . . Reinforcement 1 | . 1 . Assault . | . . . Garrison . | . . . Intercept . | . . . Searches Triggered . | . . . Construction Impeded . | . . . Haulers Reinforced . | . . . Active Scanning Responses . | . . . Cargo Convoy Interrupts . | . . . Stealth | -11 -10 -10 --------- Run | Yrd Mat Sub Distress Signals 1 | . 1 . Communications Jammed . | . . . Distress Signals . | . . . Times Spotted 26 | . 17 9 Peak Tracking Total 6 | . 6 2 Tactical Retreats 2 | . 2 . Traps | -11 -10 -10 ------- Run | Yrd Mat Sub Traps Triggered 1 | . 1 . Indirectly . | . . . Trap Hack Attempts . | . . . Triggered . | . . . Disarmed . | . . . Reprogrammed . | . . . Reused . | . . . Traps Extracted . | . . . Installed . | . . . Triggered . | . . . Machines | -11 -10 -10 ---------- Run | Yrd Mat Sub Machines Disabled . | . . . Max in Single Turn . | . . . Machines Repaired . | . . . Machines Dismantled . | . . . Machines Sabotaged . | . . . Overloaded Fab Kills . | . . . Hacking | -11 -10 -10 --------- Run | Yrd Mat Sub Machines Accessed . | . . . Terminals . | . . . Fabricators . | . . . Repair Stations . | . . . Recycling Units . | . . . Scanalyzers . | . . . Garrison Access . | . . . Total Hacks . | . . . Successful . | . . . Failed . | . . . Catastrophic . | . . . Database Lockouts . | . . . Manual . | . . . Terminals . | . . . Fabricators . | . . . Repair Stations . | . . . Recycling Units . | . . . Scanalyzers . | . . . Garrison Access . | . . . Terminal Hacks . | . . . Fabricator Hacks . | . . . Repair Station Hacks . | . . . Recycling Unit Hacks . | . . . Scanalyzer . | . . . Garrison Access Hacks . | . . . Unauthorized Hacks . | . . . Terminals . | . . . Fabricators . | . . . Repair Stations . | . . . Recycling Units . | . . . Scanalyzers . | . . . Garrison Access . | . . . Data Cores Recovered . | . . . Used . | . . . Hacking Detections . | . . . Full Trace Events . | . . . Feedback Events . | . . . Feedback Blocked . | . . . Robot Schematics Acquired . | . . . Robots Built . | . . . Authchips . | . . . Time . | . . . Total Robot Build Rating . | . . . Part Schematics Acquired . | . . . Parts Built . | . . . Authchips . | . . . Time . | . . . Total Part Build Rating . | . . . Parts Repaired . | . . . Time . | . . . Parts Recycled . | . . . Recycled Matter . | . . . Retrieved Matter . | . . . Retrieved Components . | . . . Parts Scanalyzed . | . . . Part Schematics Acquired . | . . . Parts Damaged . | . . . Bothacking | -11 -10 -10 ------------ Run | Yrd Mat Sub Used RIF Installer . | . . . Robots Hacked . | . . . Non-combat . | . . . Combat . | . . . Robot Hacks Applied . | . . . Relay Couplers Released . | . . . Fabnet Peak Effective % . | . . . Robots Rewired . | . . . Allies Hacked . | . . . Hacks Repelled . | . . . Allies | -11 -10 -10 -------- Run | Yrd Mat Sub Total Allies . | . . . Largest Group . | . . . Highest-Rated Group . | . . . Highest-Rated Ally . | . . . Total Orders . | . . . Ally Attacks . | . . . Total Damage . | . . . Kills . | . . . Allies Corrupted . | . . . Allies Melted . | . . . Intel | -11 -10 -10 ------- Run | Yrd Mat Sub Active Infowar (turns) 113 | . 113 . Terrain 113 | . 113 . Robot Analysis Total . | . . . Derelict Logs Recovered 1 | . . 1 Drone Launches . | . . . Drone Recoveries . | . . . Exploration | -11 -10 -10 ------------- Run | Yrd Mat Sub Turns Passed 1973 | 127 508 1338 Spaces Moved 1037 | 46 221 770 Core 19 | 3 . 16 Treads 952 | 43 221 688 Legs . | . . . Wheels 66 | . . 66 Hover . | . . . Flight . | . . . Fastest Speed 50 | 50 160 110 Average Speed 156 | 152 160 155 Slowest Speed 200 | 160 160 200 Overloaded Moves . | . . . Propulsion Burnouts . | . . . Robots Hopped . | . . . Potential Cave-ins . | . . . Cave-ins Triggered . | . . . Exploration Rate (%) 21 | 4 28 33 Regions Visited 2 Branch Regions 1 Pre-discovered Areas 1 | . . 1 Known Exits Taken . | . . . Unknown Exits Taken 2 | 1 1 . Scrap Searched 1 | . . 1 Spaces Dug . | . . . Terrain Destroyed . | . . . Melee . | . . . Projectile . | . . . AOE . | . . . Terrain Rammed . | . . . Walls Destroyed . | . . . Machines Disabled . | . . . Actions | -11 -10 -10 --------- Run | Yrd Mat Sub Total 1223 | 73 314 836 Wait 63 | . 55 8 Move 1035 | 45 220 770 Hop . | . . . Pick Up 17 | 7 3 7 Fast Attach . | . . . Attach 13 | 6 2 5 Detach 1 | . 1 . Swap 1 | . 1 . Drop 2 | . . 2 Fire 91 | 15 32 44 Melee . | . . . Ram . | . . . Kick . | . . . Crush . | . . . Escape Stasis . | . . . Rewire . | . . . Trap . | . . . Miscellaneous . | . . . Route ------- -11/Scrapyard -10/Materials -10/Subcaves History --------- Turn | Location | Event 12 | -11/Scrapyard | Discovered new exit (range 16) 128 | -11/Scrapyard | Entered Materials 317 | -10/Materials | Build established: Mutant 582 | -10/Materials | Discovered new exit (range 11) 636 | -10/Materials | Entered Subcaves 637 | -10/Subcaves | Approached by a straggling Scientist 851 | -10/Subcaves | Disturbed a concealed Subdweller 1772 | -10/Subcaves | A swath of the cavern ceiling suddenly collapsed 1808 | -10/Subcaves | Core integrity fell below 50% 1852 | -10/Subcaves | Lost 3 parts (1p1n1u) 1946 | -10/Subcaves | Lost 3 parts (1n2w) 1967 | -10/Subcaves | Core integrity fell below 20% 1974 | -10/Subcaves | Destroyed by X9-4ZE(R) with Subdweller Machine Gun Last Messages --------------- QN-2CU(R) destroyed. Critical hit (Destroy). Med. Laser destroyed. Subatomizers dissect the Disposable Heat Sink. I0-R8Y(R) affixes Scrap Shield Fragment to Scrap Shield. I0-R8Y(R) destroyed. Acquired 22 matter. Acquired Sub. Machine Gun. Subatomizers dissect the Disposable Heat Sink. Acquired 10 matter. Acquired Sub. Monowheel. NJ-RTV(O) collects matter. Acquired Sub. Monowheel. Subatomizers dissect the Disposable Heat Sink. NJ-RTV(O) collects matter. Dropped Scrap Shield Fragment. Subatomizers dissect the Disposable Heat Sink. Acquired derelict log, extracted data. World map updated: -8/Materials. Map ----- +----------------------------------------------------+ | ### #???????????????????????????????????????? | | # ##??????????????????????????????????????? | | #??????????????????????????????????????? | | #??????????????????????????????????????? | | ### ###????????????????????????????????????? | | ??# ##???????????????????????????????????? | | ??# ##??????????????????????????????????? | | ??## #??????????????????????????????????? | | ???#### ###??????????????????????????????????? | | ??????# ####????????????????????????????????????? | | ??????# ##?????????? ????????????????????????????? | | ??????###??????????? ???????????????????????????? | | ???????????????????? #???????????????????????????? | | ???????????????????? ???????????????????????????? | | ???????????????????? ##??????????????????????????? | | ??????????????????"" ???????????????????????????? | | ?????????????????#"" #???????????????????????????? | | ?????????????????#"" #??? "?????????????????????? | | ######???####???##" #??? #???????????????????? | | # # ##### ##?## #??? #???????????????????? | | " &&#?# #### ????????????????????? | | # ##"#"" &&[### ###""" ?????????????????????? | | ##########!! ## ##"""""??????????????????????? | | ?????????## & ""#???????????????????????? | | ??????????#"" "######"### ?????????????? | | ??????????#""" @ R"" """?????????????? | | #?????????# "" R"""""""?????????????? | | ???????##""" ##"""" ???????????????? | | #??????##### ###"""#"" "???????????????? | | ?????????## #?"""" "" " ??????????????? | | ""???????# ## "" ## "#??????????????? | | ### ""#?????? #?# #?? ##??????????????? | | ???#####???? ??# "???#???????????????? | | ??????????? # # ##?## ???????????????????? | | ???????????#?########???## ???????????????????? | | ??????????????????????????###????????????????????? | | ?????????????????????????????????????????????????? | | ?????????????????????????????????????????????????? | | ?????????????????????????????????????????????????? | | ?????????????????????????????????????????????????? | | ?????????????????????????????????????????????????? | | ?????????????????????????????????????????????????? | | ?????????????????????????????????????????????????? | | ?????????????????????????????????????????????????? | | ?????????????????????????????????????????????????? | | ?????????????????????????????????????????????????? | | ?????????????????????????????????????????????????? | | ?????????????????????????????????????????????????? | | ?????????????????????????????????????????????????? | | ?????????????????????????????????????????????????? | +----------------------------------------------------+ Best States ------------- Heat Dissipation 25 Energy Generation 10 Energy Capacity 250 Matter Stores 300 Matter Capacity 300 Sight Range 16 Terrain Scan Range 16 Terrain Scan Density 10 Weapon Shielding 33 Evasion (%) 40 Recoil Reduction 2 Item Schematics ----------------- None Robot Schematics ------------------ None Fabricated ------------ Nothing Repaired ---------- Nothing Alien Tech Used ----------------- None Achievements -------------- None Challenges ------------ None Game ------ Seed FlyingRecyclingConstruct Manual? 0 Play Time 00:15:18 Cumulative 26.1 hours Start 2025.09.19 @ 06:52:25 End 2025.09.19 @ 07:28:55 Sessions 3 Manual Loads 0 Difficulty Rogue Special Mode None Game No. 34 Rogue 7 Adventurer 0 Explorer 27 Win Type - Total 0 Types 0/0/0/0/0/0/0/0/0/0 Lore% 17 Gallery% 32 Achievement% 25 Wizard Run 0 Options --------- Layout 2 ASCII 0 Keyboard 0 Movement Mouse Keybinds 0 Fullscreen 2 Font 16/SmallcapsGlow Map View 50x44 Zoom Use 0% Tactical HUD 0 Map Filters NONE Filters NONE Steam X RUN: 4b6b53a0-5d8f-4ee1-8e46-de1f1f609c7d